bitfinex/quotes_SOLUSD_20260202
["timestamp","ask_amount","ask_price","bid_price","bid_amount"]
[1770047133804,4.21501142,105.77,105.73,12.73977986]
[1770047134219,4.21501142,105.76,105.73,4.12807193]
[1770047134526,4.21501142,105.76,105.72,12.73977986]
[1770047136820,4.21501142,105.73,105.69,4.12807193]
[1770047137021,4.21501142,105.73,105.69,12.73977986]
[1770047137216,12.82671935,105.73,105.69,12.73977986]
[1770047137726,12.82671935,105.73,105.69,4.12807193]
[1770047138412,8.61170793,105.73,105.69,4.12807193]
[1770047138610,12.82671935,105.73,105.69,4.12807193]
[1770047139418,8.61170793,105.72,105.69,4.12807193]
[1770047139612,4.21501142,105.73,105.69,12.73977986]
[1770047139918,8.61170793,105.72,105.69,4.12807193]
[1770047140119,4.21501142,105.73,105.69,12.73977986]
[1770047140419,12.8239925,105.73,105.69,4.12807193]
[1770047141410,39.1039925,105.75,105.71,4.12807193]
[1770047141608,12.8239925,105.75,105.71,4.12807193]
[1770047142028,30.49501142,105.76,105.72,12.73705301]
[1770047142210,4.21501142,105.76,105.72,12.73705301]
[1770047142615,12.8239925,105.75,105.71,4.12807193]
[1770047142816,12.8239925,105.73,105.69,4.12807193]
[1770047143024,8.60898108,105.72,105.69,4.12807193]
[1770047143435,12.8239925,105.73,105.69,4.12807193]
[1770047143640,8.60898108,105.72,105.69,4.12807193]
[1770047144013,8.60898108,105.73,105.69,4.12807193]
[1770047144212,34.88898108,105.74,105.7,4.12807193]
[1770047144431,34.88898108,105.74,105.72,4.12807193]
[1770047144432,26.28,105.74,105.72,4.12807193]
[1770047144825,12.8239925,105.77,105.73,12.73705301]
[1770047145023,4.27527085,105.78,105.73,12.73705301]
[1770047145024,12.8239925,105.78,105.74,4.12807193]
[1770047145226,8.60898108,105.79,105.75,4.12807193]
[1770047145415,0.1,105.8,105.78,4.12807193]
[1770047145620,12.8239925,105.83,105.79,12.73705301]
[1770047145940,35.4395791,105.85,105.8,4.12807193]
[1770047146140,4.21501142,105.85,105.81,12.73705301]
[1770047146435,12.9239925,105.87,105.83,4.12807193]
[1770047146735,4.21501142,105.86,105.82,12.73705301]
[1770047146935,8.70898108,105.87,105.78,33.0873337]
[1770047146936,0.1,105.87,105.84,4.12807193]
[1770047147239,0.1,105.9,105.79,0.28432314]
[1770047147240,5.04251855,105.9,105.87,4.12807193]
[1770047147431,5.04251855,105.9,105.83,12.73705301]
[1770047147432,8.60898108,105.88,105.83,12.73705301]
[1770047147633,12.8239925,105.87,105.82,22.18653122]
[1770047147932,12.8239925,105.87,105.83,4.12807193]
[1770047148826,8.60898108,105.86,105.82,4.20098124]
[1770047149322,8.60898108,105.85,105.82,4.20098124]
[1770047149518,12.99344573,105.86,105.82,4.20098124]
[1770047149714,26.28,105.88,105.83,4.20098124]
[1770047149920,8.60898108,105.86,105.83,4.48621184]
[1770047150219,12.68795132,105.85,105.81,4.48621184]
[1770047150415,12.68795132,105.83,105.79,4.48621184]
[1770047150731,26.28,105.88,105.77,4.48621184]
[1770047150732,12.68795132,105.81,105.77,4.48621184]
[1770047151038,8.60898108,105.81,105.77,4.48621184]
[1770047151228,8.60898108,105.82,105.78,4.48621184]
[1770047151437,30.55527085,105.85,105.8,4.48621184]
[1770047151438,8.60898108,105.84,105.8,4.48621184]
[1770047152224,30.35897024,105.85,105.8,22.5469609]
[1770047152225,12.68795132,105.85,105.8,22.5469609]
[1770047152441,8.60898108,105.84,105.8,13.09519292]
[1770047152659,34.63424109,105.87,105.81,4.48621184]
[1770047152827,8.60898108,105.84,105.8,4.48621184]
[1770047153143,8.60898108,105.83,105.8,4.48621184]
[1770047153332,8.60898108,105.83,105.79,4.48621184]
[1770047153537,8.60898108,105.82,105.79,4.48621184]
[1770047153739,8.60898108,105.81,105.77,4.48621184]
[1770047154037,4.07897024,105.82,105.77,4.48621184]
[1770047154038,8.60898108,105.8,105.77,4.48621184]
[1770047154446,8.60898108,105.81,105.77,22.54965081]
[1770047154645,8.60898108,105.81,105.77,13.09519292]
[1770047154847,8.60898108,105.79,105.75,13.94211107]
[1770047155137,8.60898108,105.78,105.74,9.45698111]
[1770047155317,8.60898108,105.78,105.73,13.09519292]
[1770047155318,8.60898108,105.77,105.73,4.48621184]
[1770047155738,8.60898108,105.76,105.71,22.55473249]
[1770047156038,8.60898108,105.76,105.7,23.6510749]
[1770047156039,12.68795132,105.77,105.73,4.48621184]
[1770047156740,8.60898108,105.76,105.73,4.48621184]
[1770047158040,8.60898108,105.76,105.72,4.48621184]
[1770047158251,12.68795132,105.77,105.73,4.48621184]
[1770047158543,8.60898108,105.76,105.73,4.48621184]
[1770047158730,8.60898108,105.76,105.71,18.0684669]
[1770047158731,12.68795132,105.75,105.71,4.48621184]
[1770047158934,8.60898108,105.74,105.71,4.48621184]
[1770047159140,12.68795132,105.74,105.69,4.48621184]
[1770047159333,12.68795132,105.73,105.69,4.48621184]
[1770047159537,12.68795132,105.72,105.67,22.55833217]
[1770047159841,8.60898108,105.73,105.69,4.48621184]
[1770047160144,12.68795132,105.73,105.69,4.48621184]
[1770047160346,8.60898108,105.72,105.69,4.48621184]
[1770047161036,12.68795132,105.73,105.68,22.55709867]
[1770047161340,4.07897024,105.72,105.68,13.09519292]
[1770047161544,12.68795132,105.71,105.66,13.09519292]
[1770047161726,12.68795132,105.71,105.67,4.48621184]
[1770047161930,8.60898108,105.7,105.67,4.48621184]
[1770047162323,8.60898108,105.71,105.67,4.48621184]
[1770047162529,8.60898108,105.72,105.68,4.48621184]
[1770047162839,8.60898108,105.72,105.67,18.07211655]
[1770047162840,8.60898108,105.74,105.7,4.48621184]
[1770047163141,8.60898108,105.74,105.7,13.09519292]
[1770047163535,8.60898108,105.74,105.67,33.12169513]
[1770047163536,8.60898108,105.72,105.68,4.48621184]
[1770047163770,8.60898108,105.72,105.68,13.09519292]
[1770047163985,12.68795132,105.73,105.68,13.09519292]
[1770047164145,8.60898108,105.71,105.66,22.55915475]
[1770047164485,8.60898108,105.72,105.68,4.48621184]
[1770047164779,12.68795132,105.71,105.67,4.48621184]
[1770047164941,8.60898108,105.74,105.69,13.09519292]
[1770047165140,8.60898108,105.73,105.7,4.48621184]
[1770047165340,8.60898108,105.72,105.68,4.48621184]
[1770047165551,12.68795132,105.73,105.68,22.55745809]
[1770047165762,8.60898108,105.74,105.7,4.48621184]
[1770047165959,12.68795132,105.74,105.7,13.09519292]
[1770047166146,12.68795132,105.74,105.7,22.55567341]
[1770047167046,12.68795132,105.74,105.7,9.46068127]
[1770047167243,8.60898108,105.74,105.7,22.55587419]
[1770047167544,8.60898108,105.73,105.7,4.48621184]
[1770047167960,12.68795132,105.73,105.68,13.94818351]
[1770047168150,12.68795132,105.72,105.68,4.48621184]
[1770047168764,8.60898108,105.72,105.68,4.48621184]
[1770047169165,12.68795132,105.73,105.69,4.48621184]
[1770047170440,4.07897024,105.75,105.7,4.48621184]
[1770047170643,8.60898108,105.77,105.72,4.48621184]
[1770047170854,8.60898108,105.76,105.72,13.09519292]
[1770047171264,12.68795132,105.77,105.72,13.09519292]
[1770047171470,12.68795132,105.75,105.71,13.09519292]
[1770047171771,30.55527085,105.8,105.7,4.48621184]
[1770047171772,8.60898108,105.73,105.7,4.48621184]
[1770047172072,12.68795132,105.74,105.7,4.48621184]
[1770047172443,4.07897024,105.74,105.7,13.09519292]
[1770047172772,4.07897024,105.74,105.7,22.5558109]
[1770047172950,4.07897024,105.74,105.68,13.09519292]
[1770047173150,4.07897024,105.73,105.68,4.48621184]
[1770047173356,12.68795132,105.73,105.69,4.48621184]
[1770047173568,12.68795132,105.73,105.69,22.55667527]
[1770047173770,12.68795132,105.73,105.69,4.48621184]
[1770047173962,8.60898108,105.72,105.69,4.48621184]
[1770047174163,12.68795132,105.71,105.67,4.48621184]
[1770047174966,30.55527085,105.76,105.65,22.55992444]
[1770047174967,8.60898108,105.69,105.65,22.55992444]
[1770047175168,8.60898108,105.69,105.66,4.48621184]
[1770047175352,8.60898108,105.71,105.67,4.48621184]
[1770047175661,12.68795132,105.71,105.67,4.48621184]
[1770047175967,8.60898108,105.69,105.65,13.09519292]
[1770047176174,12.68795132,105.69,105.65,4.48621184]
[1770047176372,8.60898108,105.69,105.65,4.48621184]
[1770047176548,8.60898108,105.7,105.65,13.09519292]
[1770047176750,8.60898108,105.69,105.65,4.48621184]
[1770047177168,12.68795132,105.7,105.66,4.48621184]
[1770047178500,8.60898108,105.7,105.66,13.09519292]
[1770047178786,4.07897024,105.69,105.65,13.09519292]
[1770047179483,4.07897024,105.71,105.67,4.48621184]
[1770047179658,4.07897024,105.7,105.66,22.55951035]
[1770047179984,4.09567345,105.72,105.68,4.21663135]
[1770047180165,12.70465453,105.72,105.68,12.82561243]
[1770047180486,12.70465453,105.72,105.68,22.28811782]
[1770047180654,12.70465453,105.72,105.68,12.82561243]
[1770047180860,12.70465453,105.72,105.68,4.21663135]
[1770047181481,12.70465453,105.72,105.68,12.82561243]
[1770047181660,12.70465453,105.72,105.68,4.21663135]
[1770047181855,8.60898108,105.7,105.66,4.21663135]
[1770047182079,8.60898108,105.71,105.68,4.21663135]
[1770047182278,12.70465453,105.73,105.69,4.21663135]
[1770047182493,12.70465453,105.7,105.65,12.82561243]
[1770047182783,12.70465453,105.7,105.66,4.21663135]
[1770047182990,12.70465453,105.71,105.67,4.21663135]
[1770047183485,8.60898108,105.7,105.67,4.21663135]
[1770047183856,12.70465453,105.7,105.65,22.2903559]
[1770047184058,12.70465453,105.7,105.66,12.82561243]
[1770047184780,4.27527085,105.73,105.67,4.21663135]
[1770047184781,8.60898108,105.71,105.67,4.21663135]
[1770047185083,12.70465453,105.71,105.67,4.21663135]
[1770047185260,8.60898108,105.7,105.67,4.21663135]
[1770047186977,12.70465453,105.71,105.67,4.21663135]
[1770047187276,12.70465453,105.7,105.67,4.21663135]
[1770047187484,12.70465453,105.69,105.66,49.9]
[1770047187894,12.70465453,105.69,105.65,4.21663135]
[1770047188379,12.70465453,105.68,105.64,12.82561243]
[1770047188676,8.60898108,105.68,105.65,4.21663135]
[1770047188883,12.70465453,105.69,105.65,4.21663135]
[1770047189070,4.09567345,105.69,105.65,4.21663135]
[1770047189272,12.70465453,105.69,105.65,4.21663135]
[1770047189975,8.60898108,105.68,105.65,4.21663135]
[1770047190484,12.70465453,105.68,105.64,8.60898108]
[1770047190686,12.70465453,105.68,105.64,12.82561243]
[1770047190996,12.70465453,105.68,105.64,22.29171355]
[1770047191492,12.70465453,105.68,105.64,12.82561243]
[1770047191875,12.70465453,105.68,105.64,22.29166482]
[1770047192185,12.70465453,105.68,105.64,4.21663135]
[1770047192380,4.27527085,105.71,105.63,0.2]
[1770047192381,4.09567345,105.65,105.63,0.2]
[1770047192584,4.09567345,105.64,105.63,0.00025406]
[1770047192770,12.70465453,105.64,105.63,0.00025406]
[1770047192970,12.70465453,105.65,105.63,0.00025406]
[1770047193363,8.60898108,105.66,105.63,0.00025406]
[1770047193776,4.09567345,105.65,105.63,0.00025406]
[1770047194383,12.70465453,105.65,105.63,0.00025406]
[1770047195085,30.39567345,105.68,105.64,4.21663135]
[1770047195293,4.09567345,105.71,105.66,4.21663135]
[1770047195488,12.70465453,105.71,105.67,4.01663186]
[1770047195992,4.09567345,105.68,105.64,8.60898108]
[1770047196387,12.70465453,105.7,105.65,8.60898108]
[1770047197079,12.70465453,105.7,105.65,18.07383271]
[1770047197276,30.39567345,105.71,105.65,9.46485163]
[1770047197493,4.09567345,105.7,105.66,12.82561243]
[1770047197694,12.70465453,105.69,105.64,12.82561243]
[1770047197872,4.09567345,105.68,105.64,22.29170034]
[1770047198078,12.70465453,105.7,105.66,4.21663135]
[1770047198279,4.09567345,105.7,105.66,12.82561243]
[1770047198790,12.70465453,105.7,105.66,4.21663135]
[1770047198997,26.3,105.71,105.64,33.13043098]
[1770047198998,12.70465453,105.68,105.64,4.21663135]
[1770047199186,4.09567345,105.68,105.64,12.82561243]
[1770047199393,12.70465453,105.7,105.65,12.82561243]
[1770047199897,4.09567345,105.7,105.66,12.82561243]
[1770047200198,4.09567345,105.71,105.67,12.82561243]
[1770047200402,12.70800337,105.71,105.67,12.82896127]
[1770047200701,12.70800337,105.71,105.67,4.21663135]
[1770047201300,8.61232992,105.7,105.67,4.21663135]
[1770047201480,12.70800337,105.71,105.67,4.21663135]
[1770047202372,12.70800337,105.7,105.66,4.21663135]
[1770047202777,12.70800337,105.68,105.64,4.21663135]
[1770047203286,4.09567345,105.68,105.64,12.82896127]
[1770047203484,4.09567345,105.68,105.64,22.29488607]
[1770047204195,12.70800337,105.68,105.64,12.82896127]
[1770047204383,12.70800337,105.68,105.64,4.21663135]
[1770047205492,12.70800337,105.67,105.63,4.21688541]
[1770047205799,12.70800337,105.67,105.63,22.29617075]
[1770047206378,4.09567345,105.67,105.63,22.29617075]
[1770047206797,12.70800337,105.68,105.64,4.21663135]
[1770047206998,30.57527085,105.7,105.65,8.61232992]
[1770047206999,34.6709443,105.7,105.65,8.61232992]
[1770047207303,4.09567345,105.67,105.63,12.82921533]
[1770047207719,26.3,105.71,105.63,0.00025406]
[1770047207720,12.70800337,105.65,105.63,0.00025406]
[1770047208000,4.09567345,105.63,105.57,0.2]
[1770047208203,8.61232992,105.61,105.57,22.37850342]
[1770047208394,8.61232992,105.61,105.57,4.29380266]
[1770047208700,12.99719398,105.61,105.57,4.29380266]
[1770047209404,12.99719398,105.61,105.57,12.90613258]
[1770047209575,12.99719398,105.6,105.57,0.2]
[1770047209780,8.61232992,105.6,105.57,0.2]
[1770047209996,8.61232992,105.59,105.57,0.2]
[1770047210303,4.46998609,105.61,105.56,0.2]
[1770047210304,4.46998609,105.57,105.56,0.2]
[1770047210483,8.61232992,105.57,105.56,0.2]
[1770047210792,13.08231601,105.57,105.54,0.2]
[1770047211101,13.08231601,105.56,105.54,0.2]
[1770047211407,30.57527085,105.59,105.5,4.05117428]
[1770047211408,13.08231601,105.55,105.5,4.05117428]
[1770047211702,8.61232992,105.54,105.5,4.05117428]
[1770047212084,13.08231601,105.54,105.5,4.05117428]
[1770047212899,10.52271176,105.56,105.51,12.6635042]
[1770047213108,8.61232992,105.55,105.51,12.6635042]
[1770047213294,19.13504168,105.56,105.51,13.5289408]
[1770047213487,6.05272567,105.56,105.54,4.05117428]
[1770047213695,6.05272567,105.56,105.53,8.61232992]
[1770047213899,30.57527085,105.6,105.54,8.61232992]
[1770047213900,8.61232992,105.59,105.54,8.61232992]
[1770047214089,13.08231601,105.59,105.54,8.61232992]
[1770047214284,13.08231601,105.6,105.56,8.61232992]
[1770047214606,4.46998609,105.6,105.56,8.61232992]
[1770047214787,4.46998609,105.6,105.57,8.61232992]
[1770047215103,6.10615096,105.61,105.59,8.61232992]
[1770047215914,6.10615096,105.61,105.58,8.61232992]
[1770047216908,4.46998609,105.6,105.56,8.61232992]
[1770047217110,4.46998609,105.58,105.54,8.61232992]
[1770047217286,4.46998609,105.58,105.55,8.61232992]
[1770047217485,4.46998609,105.58,105.53,9.84922693]
[1770047217486,13.08231601,105.57,105.53,8.61232992]
[1770047217704,4.46998609,105.53,105.47,23.22684838]
[1770047217910,4.46998609,105.48,105.47,0.2]
[1770047218090,13.08231601,105.48,105.43,8.61232992]
[1770047218410,4.46998609,105.48,105.44,8.61232992]
[1770047218586,13.08231601,105.48,105.44,8.61232992]
[1770047218785,13.08231601,105.48,105.43,18.09723548]
[1770047219729,13.08231601,105.47,105.43,9.48487872]
[1770047219911,13.08231601,105.47,105.43,18.09720864]
[1770047220304,4.46998609,105.47,105.43,18.09720864]
[1770047220502,4.46998609,105.43,105.4,0.2]
[1770047220703,8.61232992,105.42,105.4,0.2]
[1770047220893,13.08231601,105.43,105.4,0.2]
[1770047221399,4.46998609,105.4,105.35,8.61232992]
[1770047221600,8.61232992,105.41,105.37,8.61232992]
[1770047221806,13.08231601,105.41,105.37,8.61232992]
[1770047221993,8.61232992,105.39,105.34,9.49307005]
[1770047222192,8.61232992,105.38,105.34,8.61232992]
[1770047222516,13.08231601,105.38,105.33,19.0796906]
[1770047223010,4.46998609,105.38,105.34,8.61232992]
[1770047223515,8.61232992,105.4,105.36,0.97358743]
[1770047223702,4.46998609,105.42,105.36,0.97358743]
[1770047223703,8.61232992,105.41,105.36,9.58591735]
[1770047224024,13.08231601,105.41,105.36,9.58591735]
[1770047224203,13.08231601,105.39,105.32,28.98484353]
[1770047224406,13.08231601,105.39,105.34,8.61232992]
[1770047224711,4.46998609,105.41,105.37,8.61232992]
[1770047224889,8.61232992,105.41,105.36,0.97358743]
[1770047225090,13.08231601,105.45,105.4,8.61232992]
[1770047225316,13.08231601,105.43,105.37,0.97358743]
[1770047225488,13.08231601,105.43,105.38,9.48946669]
[1770047225489,8.61232992,105.42,105.38,9.48946669]
[1770047225690,13.08231601,105.43,105.38,8.61232992]
[1770047225894,4.46998609,105.41,105.37,8.61232992]
[1770047226204,4.46998609,105.41,105.37,18.10242445]
[1770047226389,4.46998609,105.41,105.37,8.61232992]
[1770047226591,4.46998609,105.43,105.39,8.61232992]
[1770047226799,8.61232992,105.42,105.37,8.61232992]
[1770047227010,4.46998609,105.41,105.37,8.61232992]
[1770047227228,4.46998609,105.41,105.34,28.29133007]
[1770047227229,8.61232992,105.41,105.34,0.97358743]
[1770047227394,8.61232992,105.41,105.29,47.58621839]
[1770047227395,13.08231601,105.38,105.33,8.61232992]
[1770047227595,13.08231601,105.37,105.33,8.61232992]
[1770047227789,4.46998609,105.36,105.33,8.61232992]
[1770047228726,4.46998609,105.36,105.32,8.61232992]
[1770047229021,13.08231601,105.36,105.32,8.61232992]
[1770047229193,4.46998609,105.36,105.33,8.61232992]
[1770047230703,13.99582392,105.39,105.35,8.61232992]
[1770047230904,9.52583783,105.39,105.36,8.61232992]
[1770047231114,13.99582392,105.39,105.35,8.61232992]
[1770047231612,4.46998609,105.37,105.33,8.61232992]
[1770047231814,4.46998609,105.37,105.34,9.49283465]
[1770047232019,13.99582392,105.39,105.34,18.10516457]
[1770047232221,9.52583783,105.39,105.36,8.61232992]
[1770047232397,9.52583783,105.39,105.35,8.61232992]
[1770047232710,9.52583783,105.39,105.34,34.19909722]
[1770047232711,9.52583783,105.39,105.36,8.61232992]
[1770047232899,9.52583783,105.39,105.35,8.61232992]
[1770047233099,9.52583783,105.39,105.36,8.61232992]
[1770047233798,9.52583783,105.39,105.36,18.10310061]
[1770047233994,7.53412373,105.39,105.38,8.61232992]
[1770047235209,7.53412373,105.39,105.37,8.61232992]
[1770047235402,7.53412373,105.39,105.36,34.1925282]
[1770047235403,4.5,105.41,105.38,8.61232992]
[1770047236191,4.5,105.41,105.37,18.10184012]
[1770047236391,4.5,105.4,105.37,8.61232992]
[1770047237019,4.5,105.39,105.36,9.4911947]
[1770047237210,4.5,105.39,105.36,8.61232992]
[1770047237392,4.5,105.38,105.34,8.61232992]
[1770047237596,4.5,105.37,105.32,50.09581326]
[1770047237801,4.5,105.37,105.34,8.61232992]
[1770047238012,4.5,105.37,105.34,18.10528359]
[1770047238314,4.5,105.4,105.34,9.49295367]
[1770047238518,4.5,105.37,105.32,9.49415785]
[1770047238722,4.5,105.36,105.32,18.10648777]
[1770047239106,4.5,105.36,105.33,8.61232992]
[1770047239510,4.5,105.35,105.32,8.61232992]
[1770047239922,26.36,105.39,105.29,0.1]
[1770047239923,4.5,105.38,105.34,8.61232992]
[1770047240129,4.5,105.38,105.35,8.61232992]
[1770047240626,14.84133211,105.48,105.37,8.61232992]
[1770047240815,8.61232992,105.42,105.37,8.61232992]
[1770047241202,6.03447409,105.43,105.34,0.28432314]
[1770047241203,6.03447409,105.43,105.39,12.72892902]
[1770047241403,1.53447409,105.43,105.41,12.72892902]
[1770047241723,1.53447409,105.43,105.39,8.61232992]
[1770047241920,8.61232992,105.42,105.37,18.1022819]
[1770047242421,8.61232992,105.42,105.38,8.61232992]
[1770047242630,4.5,105.41,105.37,18.1022819]
[1770047243723,4.5,105.4,105.36,18.10306678]
[1770047243929,4.5,105.4,105.37,8.61232992]
[1770047245124,4.5,105.39,105.35,8.61232992]
[1770047245330,4.5,105.39,105.36,8.61232992]
[1770047246714,13.11232992,105.41,105.37,8.61232992]
[1770047247026,4.5,105.4,105.36,18.10312408]
[1770047248128,8.61232992,105.41,105.36,18.10312408]
[1770047248322,4.5,105.41,105.38,8.61232992]
[1770047248626,6.03701871,105.42,105.4,8.61232992]
[1770047248831,6.03701871,105.42,105.39,8.61232992]
[1770047249136,6.03701871,105.42,105.4,8.61232992]
[1770047249327,6.03701871,105.42,105.39,18.10038447]
[1770047249530,13.11232992,105.46,105.41,8.61232992]
[1770047249746,4.5,105.44,105.4,34.97232992]
[1770047249938,4.5,105.43,105.39,18.10038447]
[1770047250307,4.5,105.42,105.38,34.97232992]
[1770047250512,4.5,105.41,105.38,34.97232992]
[1770047250927,4.5,105.4,105.36,8.61232992]
[1770047251113,4.5,105.39,105.35,34.97232992]
[1770047251310,4.5,105.39,105.33,23.73439649]
[1770047251311,4.5,105.38,105.32,23.73657312]
[1770047251637,4.5,105.38,105.34,8.61232992]
[1770047251833,4.5,105.38,105.34,9.49285161]
[1770047252032,4.5,105.38,105.35,18.10437246]
[1770047252215,4.5,105.38,105.34,18.10497198]
[1770047252413,4.5,105.38,105.35,8.61232992]
[1770047252612,4.5,105.4,105.37,8.61232992]
[1770047252916,4.5,105.4,105.36,18.10359352]
[1770047253131,8.61232992,105.41,105.36,18.10359352]
[1770047253132,4.5,105.41,105.37,8.61232992]
[1770047253726,13.11232992,105.41,105.37,8.61232992]
[1770047253935,4.5,105.41,105.37,8.61232992]
[1770047254237,4.5,105.4,105.36,18.10359352]
[1770047254535,4.5,105.4,105.37,8.61232992]
[1770047255040,4.5,105.4,105.37,18.10206695]
[1770047255234,4.5,105.42,105.39,8.61232992]
[1770047255617,4.5,105.44,105.41,8.61232992]
[1770047256235,4.5,105.44,105.39,26.36]
[1770047256532,4.5,105.45,105.41,8.61232992]
[1770047256836,4.5,105.45,105.39,26.36]
[1770047256837,4.5,105.44,105.4,8.61232992]
[1770047257032,4.5,105.44,105.41,8.61232992]
[1770047258318,4.5,105.44,105.4,8.61232992]
[1770047259440,4.5,105.43,105.39,8.61232992]
[1770047259621,4.5,105.42,105.38,8.61232992]
[1770047259822,4.5,105.42,105.39,8.61232992]
[1770047260017,4.5,105.4,105.37,8.61232992]
[1770047260418,4.5,105.39,105.36,8.66312612]
[1770047260735,4.5,105.36,105.32,9.49441272]
[1770047260937,4.5,105.36,105.34,8.66312612]
[1770047261113,22.22755839,105.44,105.35,8.66312612]
[1770047261114,4.5,105.38,105.35,8.66312612]
[1770047261516,4.5,105.38,105.34,8.66312612]
[1770047261741,4.5,105.38,105.33,26.36]
[1770047261742,4.5,105.38,105.35,8.66312612]
[1770047262325,4.5,105.38,105.34,8.66312612]
[1770047262540,4.5,105.38,105.35,8.66312612]
[1770047262728,4.5,105.38,105.36,8.66312612]
[1770047262921,4.5,105.38,105.35,8.66312612]
[1770047263743,4.5,105.38,105.34,8.66312612]
[1770047263940,4.5,105.38,105.35,8.66312612]
[1770047264140,4.5,105.38,105.33,26.36]
[1770047264349,4.5,105.37,105.34,8.66312612]
[1770047264639,4.5,105.37,105.35,8.66312612]
[1770047264819,4.5,105.37,105.34,8.66312612]
[1770047265437,4.5,105.37,105.35,8.66312612]
[1770047265621,4.5,105.39,105.35,8.66312612]
[1770047265826,4.5,105.38,105.34,8.66312612]
[1770047266045,4.5,105.36,105.33,26.36]
[1770047266352,4.5,105.36,105.32,8.66312612]
[1770047266722,4.5,105.36,105.33,8.66312612]
[1770047267839,4.5,105.38,105.34,8.66312612]
[1770047268152,4.5,105.36,105.33,8.66312612]
[1770047268736,4.5,105.35,105.31,9.49556266]
[1770047269044,4.5,105.37,105.34,8.66312612]
[1770047269842,4.5,105.37,105.33,8.66312612]
[1770047269843,13.16312612,105.37,105.33,8.66312612]
[1770047270048,4.5,105.36,105.32,35.04312612]
[1770047270851,4.5,105.35,105.32,35.04312612]
[1770047271050,4.5,105.35,105.32,44.53790807]
[1770047271246,4.5,105.35,105.33,8.66312612]
[1770047271921,4.5,105.37,105.33,8.66312612]
[1770047272223,4.5,105.37,105.34,8.66312612]
[1770047272425,4.27527085,105.4,105.35,8.66312612]
[1770047272622,8.66312612,105.4,105.35,8.66312612]
[1770047272823,8.66312612,105.4,105.36,8.66312612]
[1770047274160,8.66312612,105.4,105.35,8.66312612]
[1770047274328,8.66312612,105.4,105.36,8.66312612]
[1770047274527,12.94332382,105.4,105.36,8.66312612]
[1770047274755,4.2801977,105.39,105.34,38.10410458]
[1770047274942,4.2801977,105.39,105.36,8.66312612]
[1770047275246,4.2801977,105.39,105.34,38.10410458]
[1770047275247,4.2801977,105.39,105.35,18.15502448]
[1770047275550,4.2801977,105.39,105.36,8.66312612]
[1770047276049,4.2801977,105.39,105.36,18.15406456]
[1770047276459,4.2801977,105.38,105.35,8.66312612]
[1770047277150,4.2801977,105.38,105.35,18.15519838]
[1770047277456,8.66312612,105.4,105.37,8.66312612]
[1770047277457,4.2801977,105.4,105.37,8.66312612]
[1770047277839,12.94332382,105.42,105.37,8.66312612]
[1770047278060,4.2801977,105.41,105.37,18.15341874]
[1770047278246,4.2801977,105.43,105.39,2.23131079]
[1770047278553,4.2801977,105.44,105.38,2.23131079]
[1770047278752,4.2801977,105.43,105.4,8.66312612]
[1770047278938,4.2801977,105.43,105.39,26.38]
[1770047278939,4.2801977,105.43,105.39,35.04312612]
[1770047279141,4.2801977,105.42,105.38,8.66312612]
[1770047279455,4.2801977,105.42,105.37,33.21621081]
[1770047279456,4.2801977,105.45,105.41,2.23131079]
[1770047279641,12.94332382,105.44,105.39,37.27443691]
[1770047280057,4.2801977,105.42,105.39,26.38]
[1770047280258,4.2801977,105.44,105.39,44.53158458]
[1770047280460,4.2801977,105.43,105.39,44.53158458]
[1770047280652,12.94332382,105.43,105.39,35.86845846]
[1770047280957,4.2801977,105.42,105.38,44.53221464]
[1770047281150,4.2801977,105.42,105.38,44.53218294]
[1770047281354,4.2801977,105.42,105.39,8.66312612]
[1770047281651,4.2801977,105.42,105.38,35.86905682]
[1770047281652,4.2801977,105.42,105.38,26.38]
[1770047281959,4.2801977,105.39,105.35,8.66312612]
[1770047282162,4.2801977,105.41,105.36,10.89443691]
[1770047282354,12.74345369,105.47,105.39,8.66312612]
[1770047282355,4.2801977,105.42,105.39,8.66312612]
[1770047282754,4.2801977,105.44,105.4,8.66312612]
[1770047282939,4.2801977,105.42,105.38,10.89443691]
[1770047283139,12.94332382,105.42,105.38,8.66312612]
[1770047283667,4.2801977,105.41,105.39,8.66312612]
[1770047283844,4.2801977,105.43,105.39,8.66312612]
[1770047284044,4.2801977,105.42,105.38,8.66312612]
[1770047284361,4.2801977,105.42,105.38,9.48946669]
[1770047284562,4.2801977,105.42,105.38,18.15259281]
[1770047286260,4.2801977,105.42,105.38,9.48946669]
[1770047286460,4.2801977,105.42,105.38,18.15259281]
[1770047286669,4.2801977,105.41,105.37,44.5330093]
[1770047286965,4.2801977,105.41,105.38,18.15256942]
[1770047287346,4.2801977,105.43,105.4,8.66312612]
[1770047288062,4.2801977,105.44,105.4,8.66312612]
[1770047288365,4.2801977,105.43,105.39,35.02312612]
[1770047288562,8.66312612,105.44,105.39,35.02312612]
[1770047288563,4.2801977,105.42,105.39,26.36]